Cogmind - Beta 11.1 @@@ ROGUE MODE // 2022.06.03 @ 14:41:55 Player: ktur Result: Destroyed by H-61 Shepherd with Heavy Assault Cannon Performance ------------- Evolutions (2) 1000 Regions Visited (5) 1000 Robots Destroyed (40) 200 Value Destroyed (900) 900 Prototype IDs (29) 580 Alien Tech Used (0) 0 Bonus (300) 300 TOTAL SCORE: 3980 Bonus ------- Aligned with FarCom 300 Cogmind --------- Core Integrity 0/550 Matter 129/300 Energy 23/100 System Corruption 5% Temperature Cool (18) Movement Core (50) Location -8/Materials Parts ------- > --- POWER (1) -------- (None) > --- PROPULSION (4) --- (None) > --- UTILITY (4) ------ (None) > --- WEAPON (2) ------- (None) > --- INVENTORY (5) ---- Aerolev Unit Modified TNC Cloak of Protection Heavy EM Shotgun Katana Peak State ------------ > --- POWER ------------ Nuclear Core > --- PROPULSION ------- Light Treads Light Treads Light Treads Light Treads > --- UTILITY ---------- Huge Storage Unit Targeting Computer Light Armor Plating Light Armor Plating > --- WEAPON ----------- Heavy EM Shotgun Improved EM Pulse Cannon > --- INVENTORY -------- Light Ion Engine Light Ion Engine Light Nuclear Core Light Treads Aerolev Unit Large Storage Unit High-capacity Matter Pod Improved Signal Interpreter Advanced Terrain Scan Processor Modified TNC ECM Suite Cloak of Protection Improved Utility Shielding Light Armor Plating Improved Light Armor Plating Improved Light Armor Plating High-powered Tractor Beam Improved EM Pulse Cannon Improved EM Pulse Cannon Improved EM Pulse Cannon Gauss Rifle Grenade Launcher Grenade Launcher Great Maul Katana [Rating: 26] Favorites ----------- Power Ion Engine Engine Ion Engine Power Core Nuclear Core Propulsion Light Treads Treads Light Treads Hover Unit Aerolev Unit Utility Targeting Computer Storage Large Storage Unit Processor Targeting Computer Protection Light Armor Plating Weapon EM Pulse Gun Energy Gun EM Pulse Gun Energy Cannon Improved EM Pulse Cannon Ballistic Gun Assault Rifle Launcher Grenade Launcher Build | -11 -10 -10 -10 -9 -8 ------- Run | Scr Mat Min Exi Min Mat Slots Evolved 4 | . . . . . 4 Power . | . . . . . . Propulsion 2 | . . . . . 2 Utility 2 | . . . . . 2 Weapon . | . . . . . . Parts Attached 51 | 7 15 3 . 3 23 Power 2 | 1 . . . . 1 Engine 1 | 1 . . . . . Core 1 | . . . . . 1 Reactor . | . . . . . . Propulsion 7 | 2 . 1 . 1 3 Treads 6 | 2 . 1 . 1 2 Leg . | . . . . . . Wheel . | . . . . . . Hover 1 | . . . . . 1 Flight . | . . . . . . Utility 13 | 1 4 . . . 8 Device . | . . . . . . Storage 5 | 1 3 . . . 1 Processor 1 | . 1 . . . . Hackware . | . . . . . . Protection 7 | . . . . . 7 Artifact . | . . . . . . Weapon 29 | 3 11 2 . 2 11 Energy Gun 14 | 2 6 1 . 1 4 Energy Cannon 6 | . . . . . 6 Ballistic Gun 4 | 1 2 . . 1 . Ballistic Cannon . | . . . . . . Launcher 5 | . 3 1 . . 1 Special Weapon . | . . . . . . Impact Weapon . | . . . . . . Slashing Weapon . | . . . . . . Piercing Weapon . | . . . . . . Special Melee Weapon . | . . . . . . Unidentified Prototypes 3 | . . . . . 3 Corrupted Parts 1 | . . . . . 1 System Corruption 4 | . . . . . 4 Parts Lost 14 | . . . . 1 13 Power 1 | . . . . . 1 Propulsion 4 | . . . . . 4 Utility 5 | . . . . . 5 Weapon 4 | . . . . 1 3 Highest Loss Streak 12 | . . . . 1 12 To Critical Strikes . | . . . . . . Average Slot Usage (%) 94 | . 94 100 100 99 91 Engine 9 | . 14 14 14 14 . Core 2 | . . . . . 8 Treads 28 | . 28 28 28 28 29 Storage 12 | . 14 14 14 14 9 Processor 10 | . 8 14 14 14 8 Protection 6 | . . . . . 17 Energy Gun 18 | . 23 27 28 14 8 Energy Cannon 2 | . . . . . 6 Ballistic Gun 2 | . 3 . . 12 2 Naked Turns 2 | . . . . . 2 Heaviest Build 107 | 14 29 29 29 29 107 Greatest Support 80 | 40 40 40 40 40 80 Greatest Overweight (x) 4 | 4 . . . . 2 Average Overweight (x) . | . . . . . . Largest Inventory Capacity 25 | 8 15 15 15 15 25 Average Capacity 16 | 7 11 15 15 15 22 Most Carried 25 | 6 13 15 15 15 25 Average Carried 14 | 4 10 12 14 14 20 Final Capacity 15 | 8 15 15 15 15 5 Final Carried 15 | 6 12 15 15 15 5 Class Distribution -------------------- 100% | Mutant Dominant Class ---------------- Mutant | -10/Materials Mutant | -10/Mines Mutant | -10/Exiles Mutant | -9/Mines Mutant | -8/Materials Resources | -11 -10 -10 -10 -9 -8 ----------- Run | Scr Mat Min Exi Min Mat Matter Collected 994 | 175 309 149 . 92 269 Remotely . | . . . . . . Salvage Created 920 | . 337 130 . 92 361 Parts 70 | . 37 12 . 4 17 Haulers Intercepted 2 | . 2 . . . . Recyclers Shooed 1 | . 1 . . . . Parts Field Recycled . | . . . . . . Retrieved Matter . | . . . . . . Parts Self-Destructed . | . . . . . . Prevented . | . . . . . . Kills | -11 -10 -10 -10 -9 -8 ------- Run | Scr Mat Min Exi Min Mat Combat Hostiles Destroyed 30 | . 12 6 . 2 10 Guns 11 | . 2 3 . 2 4 Cannons 1 | . . . . . 1 AOE 18 | . 10 3 . . 5 Classes Destroyed 11 | . 6 1 . 1 3 Worker 4 | . 1 . . . 3 Builder 2 | . 1 . . . 1 Hauler 2 | . 2 . . . . Recycler 1 | . . 1 . . . Operator 1 | . 1 . . . . Swarmer 15 | . 9 6 . . . Grunt 9 | . 3 . . 1 5 Duelist 1 | . . . . 1 . Sentry 2 | . . . . . 2 Specialist 2 | . . . . . 2 Hunter 1 | . . . . . 1 Best Kill Streak 9 | . 5 3 . 2 9 Combat Bots Only 5 | . 4 3 . 2 5 Max Kills in Single Turn 2 | . 2 2 . 1 2 Gunslinging . | . . . . . . Exploded 2 | . 2 2 . . 2 Melee . | . . . . . . Uniques/NPCs Destroyed . | . . . . . . Combat | -11 -10 -10 -10 -9 -8 -------- Run | Scr Mat Min Exi Min Mat Damage Taken 2393 | . 280 137 . 188 1788 Core 656 | . 46 27 . 23 560 Absorbed by Shields . | . . . . . . Regen/Repaired (Parts) 117 | . . . . . 117 Core Remaining (%) 80 | 100 . . . 61 . Volleys Fired 92 | . 36 7 . 8 41 Largest 2 | . 2 2 . 2 2 Hottest 138 | . 80 80 . 80 138 Shots Fired 146 | . 48 12 . 14 72 Gun 108 | . 39 10 . 14 45 Cannon 17 | . . . . . 17 Launcher 21 | . 9 2 . . 10 Special . | . . . . . . Kinetic 35 | . 15 . . 2 18 Thermal 20 | . . . . 2 18 Explosive 21 | . 9 2 . . 10 Electromagnetic 70 | . 24 10 . 10 26 Robot Hit Streak 11 | . 8 2 . 3 11 Robot Miss Streak 5 | . 3 1 . 1 5 Penetration Max . | . . . . . . Secondary Targets . | . . . . . . Shots Hit Robots 88 | . 26 4 . 10 48 Core Hits 74 | . 21 7 . 5 41 Critical Kills . | . . . . . . Critical Parts Destroyed . | . . . . . . Critical Strikes 1 | . . . . . 1 Burn 1 | . . . . . 1 Melee Attacks . | . . . . . . Impact . | . . . . . . Slashing . | . . . . . . Piercing . | . . . . . . Sneak Attacks . | . . . . . . Combat Hostiles . | . . . . . . Follow-up Attacks . | . . . . . . Damage Inflicted 3173 | . 1108 166 . 112 1787 Guns 962 | . 354 43 . 112 453 Cannons 285 | . . . . . 285 Explosions 1917 | . 754 117 . . 1046 Melee . | . . . . . . Ramming 9 | . . 6 . . 3 Kinetic 325 | . 145 . . 10 170 Thermal 229 | . 44 . . 25 160 Explosive 1807 | . 710 117 . . 980 Electromagnetic 803 | . 209 43 . 77 474 Impact . | . . . . . . Slashing . | . . . . . . Piercing . | . . . . . . Highest Corruption 5 | . . . . . 5 Average Corruption 4 | . . . . . 4 Corruption Purged . | . . . . . . Corruption Blocked . | . . . . . . Effects 16 | . . . . . 16 Message Errors 7 | . . . . . 7 Matter Fused 5 | . . . . . 5 Misfires 3 | . . . . . 3 Weapon Failures 1 | . . . . . 1 Overload Shots . | . . . . . . Overflow Damage 92 | . 57 . . . 35 Projectiles 11 | . . . . . 11 Explosions 81 | . 57 . . . 24 Melee . | . . . . . . Knockbacks . | . . . . . . Impact . | . . . . . . Kinetic . | . . . . . . Secondary . | . . . . . . Self-Inflicted Damage 135 | . 22 12 . . 101 Shots 6 | . 1 1 . . 4 Rammed 3 | . . 2 . . 1 Targets Rammed 4 | . . 3 . . 1 Kicked . | . . . . . . Crushed 1 | . . 1 . . . Highest Temperature 333 | . 114 72 . 120 333 Average Temperature 78 | . 39 33 . 72 95 Received Heat Transfer 732 | . 54 . . 66 612 Effects 1 | . . . . . 1 Energy Bleed 1 | . . . . . 1 Siege Activations . | . . . . . . Robots Corrupted . | . . . . . . Combat Hostiles . | . . . . . . Parts Fried 1 | . 1 . . . . Impact Corruptions . | . . . . . . Robots Melted . | . . . . . . Combat Hostiles . | . . . . . . Parts Melted 1 | . . . . . 1 Heat Transferred 679 | . 50 . . 74 555 Parts Sabotaged . | . . . . . . Parts Stolen . | . . . . . . Parts Stripped . | . . . . . . Power Chain Reactions 1 | . 1 . . . . Missiles Intercepted . | . . . . . . Alert | -11 -10 -10 -10 -9 -8 ------- Run | Scr Mat Min Exi Min Mat Peak Influence 372 | . 372 246 . 50 164 Initial 56 | . . 56 . . 19 Average 102 | . 164 143 . 44 47 Maximum Alert Level 1 | . 1 1 . . . Low Security (%) 87 | 100 74 77 . 100 100 Level 1 12 | . 25 22 . . . Level 2 . | . . . . . . Level 3 . | . . . . . . Level 4 . | . . . . . . Level 5 . | . . . . . . High Security . | . . . . . . Max Security . | . . . . . . Squads Dispatched 6 | . 2 . . . 4 Investigation 3 | . 2 . . . 1 Extermination . | . . . . . . Reinforcement 2 | . . . . . 2 Assault . | . . . . . . Garrison 1 | . . . . . 1 Intercept . | . . . . . . Searches Triggered . | . . . . . . Construction Impeded . | . . . . . . Haulers Reinforced . | . . . . . . Active Scanning Responses . | . . . . . . Cargo Convoy Interrupts . | . . . . . . Stealth | -11 -10 -10 -10 -9 -8 --------- Run | Scr Mat Min Exi Min Mat Distress Signals 1 | . . . . . 1 Communications Jammed . | . . . . . . Distress Signals . | . . . . . . Times Spotted 50 | . 17 6 . 2 25 Peak Tracking Total 12 | . 4 3 . 2 12 Tactical Retreats 2 | . . . . . 2 Traps | -11 -10 -10 -10 -9 -8 ------- Run | Scr Mat Min Exi Min Mat Traps Triggered 1 | . 1 . . . . Indirectly . | . . . . . . Trap Hack Attempts . | . . . . . . Triggered . | . . . . . . Disarmed . | . . . . . . Reprogrammed . | . . . . . . Reused . | . . . . . . Traps Extracted . | . . . . . . Installed . | . . . . . . Triggered . | . . . . . . Machines | -11 -10 -10 -10 -9 -8 ---------- Run | Scr Mat Min Exi Min Mat Machines Disabled 2 | . . 1 . . 1 Max in Single Turn 1 | . . 1 . . 1 Machines Sabotaged . | . . . . . . Garrisons Compromised . | . . . . . . Overloaded Fab Kills . | . . . . . . Hacking | -11 -10 -10 -10 -9 -8 --------- Run | Scr Mat Min Exi Min Mat Machines Accessed 12 | . 8 . 2 . 2 Terminals 8 | . 7 . . . 1 Fabricators . | . . . . . . Repair Stations 1 | . . . . . 1 Recycling Units 1 | . 1 . . . . Scanalyzers . | . . . . . . Garrison Access . | . . . . . . Total Hacks 25 | . 17 . 2 . 6 Successful 12 | . 8 . 2 . 2 Failed 13 | . 9 . . . 4 Catastrophic 1 | . 1 . . . . Database Lockouts . | . . . . . . Manual 18 | . 13 . 1 . 4 Terminals 20 | . 16 . . . 4 Fabricators . | . . . . . . Repair Stations 2 | . . . . . 2 Recycling Units 1 | . 1 . . . . Scanalyzers . | . . . . . . Garrison Access . | . . . . . . Terminal Hacks 5 | . 3 . 2 . . Record 1 | . . . 1 . . Prototype ID Bank 1 | . 1 . . . . Alert Level 1 | . 1 . . . . Hauler Manifests 1 | . 1 . . . . EX-Prototype ID Bank 1 | . . . 1 . . Fabricator Hacks . | . . . . . . Repair Station Hacks 2 | . . . . . 2 Scan Component 1 | . . . . . 1 Repair 1 | . . . . . 1 Recycling Unit Hacks . | . . . . . . Scanalyzer . | . . . . . . Garrison Access Hacks . | . . . . . . Unauthorized Hacks 5 | . 5 . . . . Terminals 4 | . 4 . . . . Botnet 2 | . 2 . . . . Operators 2 | . 2 . . . . Fabricators . | . . . . . . Repair Stations . | . . . . . . Recycling Units 1 | . 1 . . . . Tunnel 1 | . 1 . . . . Scanalyzers . | . . . . . . Garrison Access . | . . . . . . Data Cores Recovered 1 | . 1 . . . . Used . | . . . . . . Hacking Detections 9 | . 7 . . . 2 Full Trace Events 1 | . . . . . 1 Feedback Events 1 | . . . . . 1 Corruption 1 | . . . . . 1 Feedback Blocked . | . . . . . . Robot Schematics Acquired . | . . . . . . Robots Built . | . . . . . . Authchips . | . . . . . . Time . | . . . . . . Total Robot Build Rating . | . . . . . . Part Schematics Acquired . | . . . . . . Parts Built . | . . . . . . Authchips . | . . . . . . Time . | . . . . . . Total Part Build Rating . | . . . . . . Parts Repaired 1 | . . . . . 1 Time 26 | . . . . . 26 Parts Recycled . | . . . . . . Recycled Matter . | . . . . . . Retrieved Matter . | . . . . . . Retrieved Components . | . . . . . . Parts Scanalyzed . | . . . . . . Part Schematics Acquired . | . . . . . . Parts Damaged . | . . . . . . Bothacking | -11 -10 -10 -10 -9 -8 ------------ Run | Scr Mat Min Exi Min Mat Used RIF Installer . | . . . . . . Robots Hacked . | . . . . . . Non-combat . | . . . . . . Combat . | . . . . . . Robot Hacks Applied . | . . . . . . Relay Couplers Released . | . . . . . . Fabnet Peak Effective % . | . . . . . . Robots Rewired . | . . . . . . Allies Hacked . | . . . . . . Hacks Repelled . | . . . . . . Allies | -11 -10 -10 -10 -9 -8 -------- Run | Scr Mat Min Exi Min Mat Total Allies . | . . . . . . Largest Group . | . . . . . . Highest-Rated Group . | . . . . . . Highest-Rated Ally . | . . . . . . Total Orders . | . . . . . . Ally Attacks . | . . . . . . Total Damage . | . . . . . . Kills . | . . . . . . Allies Corrupted . | . . . . . . Allies Melted . | . . . . . . Intel | -11 -10 -10 -10 -9 -8 ------- Run | Scr Mat Min Exi Min Mat Robot Analysis Total . | . . . . . . Derelict Logs Recovered 1 | . . . . 1 . Drone Launches . | . . . . . . Drone Recoveries . | . . . . . . Exploration | -11 -10 -10 -10 -9 -8 ------------- Run | Scr Mat Min Exi Min Mat Turns Passed 3292 | 86 1100 306 493 147 1160 Spaces Moved 1641 | 46 612 171 307 76 429 Core 22 | 21 . . . . 1 Treads 1619 | 25 612 171 307 76 428 Legs . | . . . . . . Wheels . | . . . . . . Hover . | . . . . . . Flight . | . . . . . . Fastest Speed 50 | 50 160 160 160 160 50 Average Speed 174 | 153 160 160 160 160 216 Slowest Speed 320 | 250 160 160 160 160 320 Overloaded Moves . | . . . . . . Propulsion Burnouts . | . . . . . . Robots Hopped . | . . . . . . Cave-ins Triggered . | . . . . . . Exploration Rate (%) 38 | 6 78 32 61 26 30 Regions Visited 5 Branch Regions 3 Pre-discovered Areas 2 | . 1 . 1 . . Known Exits Taken 1 | . . . . 1 . Unknown Exits Taken 4 | 1 1 1 1 . . Scrap Searched 1 | . . 1 . . . Spaces Dug 21 | . 10 4 . . 7 Terrain Destroyed 97 | . 38 10 . . 49 Melee . | . . . . . . Projectile . | . . . . . . AOE 97 | . 38 10 . . 49 Terrain Rammed . | . . . . . . Walls Destroyed . | . . . . . . Machines Disabled . | . . . . . . Actions | -11 -10 -10 -10 -9 -8 --------- Run | Scr Mat Min Exi Min Mat Total 1916 | 58 684 188 310 87 589 Wait 65 | . 1 2 . . 62 Move 1636 | 45 611 170 306 75 429 Hop . | . . . . . . Pick Up 43 | 6 12 3 2 1 19 Fast Attach 16 | 6 2 . . . 8 Attach 10 | . 1 . . 1 8 Detach 3 | . . . . . 3 Swap 25 | 1 12 3 . 2 7 Drop 22 | . 9 . 2 . 11 Fire 92 | . 36 7 . 8 41 Melee . | . . . . . . Ram . | . . . . . . Kick . | . . . . . . Crush 4 | . . 3 . . 1 Escape Stasis . | . . . . . . Rewire . | . . . . . . Trap . | . . . . . . Miscellaneous . | . . . . . . Route ------- -11/Scrapyard -10/Materials (discovered 4 exits: [*Mat x3] / [*Min]) -10/Mines -10/Exiles -9/Mines (discovered 2 exits: *Mat x2) -8/Materials (discovered 1 exit: [*Fac]) History --------- Turn | Location | Event 50 | -11/Scrapyard | Discovered new exit (range 15) 87 | -11/Scrapyard | Entered Materials 316 | -10/Materials | Build established: Mutant 395 | -10/Materials | Discovered new exit (range 6) 727 | -10/Materials | Discovered new exit (range 16) 1059 | -10/Materials | Discovered new exit (range 16) 1158 | -10/Materials | Discovered new exit (range 14) 1187 | -10/Materials | Entered Mines 1399 | -10/Mines | Deemed a non-threat by the Exiles lab entrance 1399 | -10/Mines | Discovered new exit (range 5) 1493 | -10/Mines | Entered Exiles 1537 | -10/Exiles | Met 8R-AWN 1556 | -10/Exiles | Met EX-HEX 1609 | -10/Exiles | Met EX-BIN 1628 | -10/Exiles | Met EX-DEC 1639 | -10/Exiles | Learned location of Zion (-7) 1761 | -10/Exiles | Aligned with FarCom system 1762 | -10/Exiles | Given EX-Vault access code 1799 | -10/Exiles | Opened EX-Vault 1814 | -10/Exiles | Found Cloak of Protection 1825 | -10/Exiles | Found Modified TNC 1863 | -10/Exiles | Warned to stay clear of 0b10 Research branches 1968 | -10/Exiles | Discovered new exit (range 11) 1986 | -10/Exiles | Stole two prototypes: Modified TNC, Cloak of Protection 1986 | -10/Exiles | Entered Mines 2032 | -9/Mines | Met a Derelict bent on vengeance 2074 | -9/Mines | Identified exit to Materials 2111 | -9/Mines | Discovered exit to Materials (range 15) 2133 | -9/Mines | Entered Materials 2133 | -8/Materials | Evolved 4 slots: Propulsion x2, Utility x2 2280 | -8/Materials | Repaired Lgt. Treads 2940 | -8/Materials | Discovered new exit (range 3) 3273 | -8/Materials | Garrison activated, responded to threat 3281 | -8/Materials | Core integrity fell below 50% 3291 | -8/Materials | Released all parts (2) 3292 | -8/Materials | Core integrity fell below 20% 3293 | -8/Materials | Destroyed by H-61 Shepherd with Heavy Assault Cannon Last Messages --------------- 03283_ Neutrino Reactor explodes. 03283_ K-01 Serf destroyed. 03283_ X-62 Marksman destroyed. 03283_ Lgt. Treads destroyed. 03283_ Destroyed Lgt. Treads. 03283_ Grenade Launcher destroyed. 03283_ Lgt. Armor Plating destroyed. 03286_ The unstable cave ceiling collapses. 03286_ Imp. Utility Shielding blasted off. 03288_ The unstable cave ceiling collapses. 03288_ Targeting Computer destroyed. 03288_ Critical hit (Burn: +37). 03290_ H-61 Shepherd misfires. 03291_ Imp. EM Pulse Cannon destroyed. 03291_ Released Huge Storage Unit. 03291_ Released Imp. Light Armor Plating. 03291_ Dropped ECM Suite. 03292_ The unstable cave ceiling collapses. 03292_ Acquired Modified TNC. 03293_ R-06 Scavenger collects Great Maul. Map ----- +----------------------------------------------------+ | ?????????????????????????????????????????????????? | | ?????????????????????????????????????????????????? | | ?????????????????????????????????????????????????? | | ?????????????????????????????????????????????????? | | ?????????????????????????????????????????????????? | | ?????????????????????????????????????????????????? | | ?????????????????????????????????????????????????? | | ?????????????????????????????????????????????????? | | ?????????????????????????????????????????????????? | | ?????????????????????????????????????????????????? | | ?????????????????????????????????????????????????? | | ?????????????????????? ??? ???????????????????? | | ?????????????????????? ??? ?????????????????? | | ?????????????????????? k??? H ??????????????????? | | ?????????????????######/### g ??????????????????? | | ?????????????????# # gg#??????????????????? | | ?????????????????# # #??????????????????? | | ?????????????????# # #??????????????????? | | ?????????????????# # #??????????????????? | | ????????????????## # ##?????????????????? | | ????????????????# # ##?????????????????? | | ????????????????# #?????????????????? | | ??????????????### ##?????????????????? | | ??????????????# % g #?????????????????? | | ??????????????# # !/= r #?????????????????? | | ?????????? Y !% !@!! #??????????????????? | | ?????????? Y ! *!!!* #??????????????????? | | ????????????b### %[!*! #??????????????????? | | ??????????????# r % ^!]]%=#??????????????????? | | ?????????????# g = !%#??????????????????? | | ???????????? #g ##%* %%=#??????????????????? | | ????????????? + ??#= # #??????????????????? | | ????????????? #????# # #??????????????????? | | ???????????????????# ]# #################### | | ???????????????????######## | | ??????????????????????????# | | ??????????????????????????# | | ??????????????????????????###########+### # | | ??????????????????????????????# #! !# | | ??????????????????????????????# #! !# | | ??????????????????????????????# ##!!!!## | | ??????????????????????????????# ######## | | ??????????????????????????????# #??????# | | ??????????????????????????????# [= #??????# | | ??????????????????????????????# ! #??????# | | ??????????????????????????????# #??????# | | ??????????????????????????????###########??????# < | | ???????????????????????????????????????????????# | | ???????????????????????????????????????????????### | | ?????????????????????????????????????????????????? | +----------------------------------------------------+ Best States ------------- Heat Dissipation 31 Energy Generation 14 Energy Capacity 250 Matter Stores 300 Matter Capacity 300 Sight Range 16 Terrain Scan Density 10 Armor Coverage 300 Evasion (%) 50 Targeting Accuracy 5 Recoil Reduction 4 Item Schematics ----------------- None Robot Schematics ------------------ None Fabricated ------------ Nothing Alien Tech Used ----------------- None Achievements -------------- None Challenges ------------ None Game ------ Seed PulseThermalInjector Manual? 0 Play Time 00:15:34 Cumulative 454.8 hours Start 2022.06.03 @ 13:28:11 End 2022.06.03 @ 14:41:55 Sessions 5 Manual Loads 0 Difficulty Rogue Special Mode None Game No. 434 Rogue 434 Adventurer 0 Explorer 0 Win Type - Total 21 Types 13/2/3/2/0/0/0/1/0 Lore% 94 Gallery% 92 Achievement% 77 Wizard Run 0 Options --------- ASCII 0 Keyboard 0 Movement Arrows Keybinds 0 Fullscreen 1 Font 18/Smallcaps Map View 76x50 Tactical HUD 1 Map Filters NONE Filters NONE Steam 1 RUN: be9bfbae-cde5-4087-bfc4-93aa24a813af